fUSD/lending_fUSD_20240517
["ID","MTS","AMOUNT","RATE_DAILY","PERIOD"]
[327260671,1715943050657,-220.58,0.00012379,2]
[327260672,1715943050667,-500.0,0.00012379,2]
[327260673,1715943050679,-343.98,0.00012379,2]
[327260674,1715943050687,-500.0,0.00012379,2]
[327260675,1715943050696,-314.83,0.00012379,2]
[327260676,1715943050705,-210.3,0.00012379,2]
[327260677,1715943050714,-403.05,0.00012379,2]
[327260678,1715943050723,-164.84,0.00012379,2]
[327260679,1715943050732,-500.0,0.00012379,2]
[327260680,1715943050742,-211.05,0.00012379,2]
[327260681,1715943050751,-195.49671478,0.00012379,2]
[327260682,1715943050760,-500.0,0.00012379,2]
[327260683,1715943050770,-500.0,0.00012379,2]
[327260684,1715943050779,-161.57,0.00012379,2]
[327260685,1715943050788,-500.0,0.00012379,2]
[327260686,1715943050798,-526.1435123,0.00012379,2]
[327260687,1715943050807,-500.0,0.00012379,2]
[327260688,1715943050816,-500.0,0.00012379,2]
[327260689,1715943050826,-577.69539712,0.00012379,2]
[327260690,1715943050835,-353.53,0.00012379,2]
[327260691,1715943050844,-512.02920657,0.00012379,2]
[327260692,1715943050854,-518.18311179,0.00012379,2]
[327260693,1715943050863,-523.24112154,0.00012379,2]
[327260694,1715943050872,-499.93963638,0.00012379,2]
[327260695,1715943050882,-366.2594797,0.00012379,2]
[327260696,1715943050894,-145.58630578,0.00012379,2]
[327260697,1715943050904,-519.57450418,0.00012379,2]
[327260698,1715943050914,-500.0,0.00012379,2]
[327260699,1715943050925,-457.75207582,0.00012379,2]
[327260700,1715943050934,-328.47638353,0.00012379,2]
[327260701,1715943050943,-444.31,0.00012379,2]
[327260702,1715943050952,-23.05073069,0.00012379,2]
[327260703,1715943050977,-476.94926931,0.00012379,2]
[327260704,1715943050987,-500.0,0.00012379,2]
[327260705,1715943050996,-500.0,0.00012379,2]
[327260706,1715943051006,-500.0,0.00012379,2]
[327260707,1715943051015,-510.46563324,0.00012379,2]
[327260708,1715943051024,-500.0,0.00012379,2]
[327260709,1715943051034,-500.0,0.00012379,2]
[327260710,1715943051043,-500.0,0.00012379,2]
[327260711,1715943051053,-489.59829885,0.00012379,2]
[327260712,1715943051063,-500.0,0.00012379,2]
[327260713,1715943051072,-153.31226473,0.00012379,2]
[327260714,1715943051081,-500.0,0.00012379,2]
[327260715,1715943051095,-571.6269384,0.00012379,2]
[327260716,1715943051104,-517.19996827,0.00012379,2]
[327260717,1715943051114,-513.28003075,0.00012379,2]
[327260718,1715943051123,-500.0,0.00012379,2]
[327260719,1715943051134,-515.05639702,0.00012379,2]
[327260720,1715943051147,-500.0,0.00012379,2]
[327260721,1715943051156,-500.0,0.00012379,2]
[327260722,1715943051167,-511.28184468,0.00012379,2]
[327260723,1715943051177,-570.37362906,0.00012379,2]
[327260724,1715943051186,-500.0,0.00012379,2]
[327260725,1715943051196,-500.0,0.00012379,2]
[327260726,1715943051205,-500.0,0.00012379,2]
[327260727,1715943051215,-500.0,0.00012379,2]
[327260728,1715943051224,-500.0,0.00012379,2]
[327260729,1715943051234,-500.0,0.00012379,2]
[327260730,1715943051244,-500.0,0.00012379,2]
[327260731,1715943051253,-500.0,0.00012379,2]
[327260732,1715943051262,-500.0,0.00012379,2]
[327260733,1715943051272,-345.42,0.00012379,2]
[327260734,1715943051281,-226.36996755,0.00012379,2]
[327260735,1715943051290,-490.58,0.00012379,2]
[327260736,1715943051300,-376.17,0.00012379,2]
[327260737,1715943051309,-511.88952554,0.00012379,2]
[327260738,1715943051318,-500.0,0.00012379,2]
[327260739,1715943051328,-405.52,0.00012379,2]
[327260740,1715943051337,-521.61584969,0.00012379,2]
[327260741,1715943051346,-500.0,0.00012379,2]
[327260742,1715943051357,-516.59742723,0.00012379,2]
[327260743,1715943051367,-500.0,0.00012379,2]
[327260744,1715943051376,-500.0,0.00012379,2]
[327260745,1715943051385,-520.21470368,0.00012379,2]
[327260746,1715943051394,-500.0,0.00012379,2]
[327260747,1715943051404,-529.96,0.00012379,2]
[327260748,1715943051413,-586.86,0.00012379,2]
[327260749,1715943051423,-519.51480429,0.00012379,2]
[327260750,1715943051432,-500.0,0.00012379,2]
[327260751,1715943051442,-520.80325306,0.00012379,2]
[327260752,1715943051451,-535.70835276,0.00012379,2]
[327260753,1715943051460,-594.82728951,0.00012379,2]
[327260754,1715943051470,-436.65,0.00012379,2]
[327260755,1715943051480,-405.84682831,0.00012379,2]
[327260756,1715943051492,-500.0,0.00012379,2]
[327260757,1715943051503,-500.0,0.00012379,2]
[327260758,1715943051514,-500.0,0.00012379,2]
[327260759,1715943051523,-349.78,0.00012379,2]
[327260760,1715943051532,-500.0,0.00012379,2]
[327260761,1715943051541,-500.0,0.00012379,2]
[327260762,1715943051550,-306.97992973,0.00012379,2]
[327260763,1715943051559,-244.45667236,0.00012379,2]
[327260764,1715943051569,-228.44,0.00012379,2]
[327260765,1715943051578,-565.98,0.00012379,2]
[327260766,1715943051587,-500.0,0.00012379,2]
[327260767,1715943051596,-500.0,0.00012379,2]
[327260768,1715943051605,-500.0,0.00012379,2]
[327260769,1715943051614,-228.56182891,0.00012379,2]
[327260770,1715943051623,-301.94,0.00012379,2]
[327260771,1715943051633,-188.92,0.00012379,2]
[327260772,1715943051642,-500.0,0.00012379,2]
[327260773,1715943051854,-645.14,0.00012379,2]
[327260774,1715943051864,-500.0,0.00012379,2]
[327260775,1715943051874,-500.0,0.00012379,2]
[327260776,1715943051883,-500.0,0.00012379,2]
[327260777,1715943051892,-625.58,0.00012379,2]
[327260778,1715943051901,-737.54,0.00012394,2]
[327260779,1715943051910,-1800.0,0.000124,4]
[327260780,1715943051920,-6678.97565869,0.00012411,2]
[327260781,1715943051930,-2825.41437866,0.0001242,2]
[327260782,1715943051942,-332.315,0.0001242,2]
[327260783,1715943051954,-1663.50005,0.0001242,2]
[327260784,1715943085558,151.0,0.00020469,120]
[327260785,1715943329414,151.0,0.00020469,120]
[327260786,1715943667083,151.0,0.00020469,120]
[327260787,1715944037359,151.0,0.00020469,120]
[327260804,1715944231855,-1063.64659674,9.363e-05,2]
[327260805,1715944231864,-192.02706326,9.364e-05,2]
[327260806,1715944231876,-967.56293674,9.364e-05,2]
[327260807,1715944231885,-146.19468274,0.0001,2]
[327260808,1715944231896,-2029.82200188,0.0001,2]
[327260809,1715944231908,-615.77052,0.0001,2]
[327260810,1715944231919,-3108.21279538,0.0001,2]
[327260811,1715944231928,-1791.83230603,0.00010968,2]
[327260812,1715944231939,-293.21297153,0.00010968,2]
[327260813,1715944231950,-1415.06371918,0.00010968,2]
[327260814,1715944231961,-164.57260326,0.00010968,2]
[327260815,1715944231970,-385.88775027,0.0001097,2]
[327260816,1715944232031,-357.905496,0.0001097,2]
[327260817,1715944232042,-767.43336129,0.0001097,2]
[327260818,1715944232054,-479.46339244,0.0001097,2]
[327260819,1715944232063,-200.0,0.00011,2]
[327260820,1715944232072,-158.67,0.00011006,2]
[327260821,1715944232082,-1103.46,0.00011069,2]
[327260822,1715944232091,-367.17,0.00011161,2]
[327260823,1715944232100,-250.0,0.00011199,2]
[327260824,1715944232110,-231.01,0.00011224,2]
[327260825,1715944232119,-275.28,0.00011234,2]
[327260826,1715944232128,-303.93,0.00011234,2]
[327260827,1715944232137,-250.0,0.00011236,2]
[327260828,1715944232146,-678.17,0.0001144,2]
[327260829,1715944232156,-1159.59,0.00011628,2]
[327260830,1715944232165,-1000.0,0.00011855,2]
[327260831,1715944232174,-750.5394,0.00011855,2]
[327260832,1715944232184,-1025.12986455,0.000119,2]
[327260833,1715944232192,-7500.0,0.000119,2]
[327260834,1715944232202,-600.0,0.000119,4]
[327260836,1715944232211,-1030.38846551,0.00011945,2]
[327260838,1715944232220,-15986.95226386,0.00011955,2]
[327260840,1715944232231,-1915.75,0.00011955,2]
[327260841,1715944232242,-339.82720722,0.00011955,2]
[327260842,1715944232267,-6191.60174306,0.00011955,2]
[327260855,1715944238787,-334.13536002,0.00011955,2]
[327260858,1715944238799,-1036.24451051,0.00011955,2]
[327260860,1715944238811,-3804.36369245,0.00011955,2]
[327260862,1715944238822,-1474.5755582,0.00011955,2]
[327260864,1715944238833,-174326.22806468,0.00011955,2]
[327260866,1715944238843,-500.0,0.00012,2]
[327260868,1715944238853,-500.0,0.00012,2]
[327260870,1715944238862,-500.0,0.00012,2]
[327260872,1715944238871,-500.0,0.00012,2]
[327260873,1715944238881,-500.0,0.00012,2]
[327260874,1715944238890,-500.0,0.00012,2]
[327260875,1715944238900,-500.0,0.00012,2]
[327260876,1715944238910,-500.0,0.00012,2]
[327260877,1715944238920,-500.0,0.00012,2]
[327260878,1715944238929,-500.0,0.00012,2]
[327260879,1715944238939,-500.0,0.00012,2]
[327260880,1715944238948,-500.0,0.00012,2]
[327260881,1715944239191,-500.0,0.00012,2]
[327260882,1715944239201,-500.0,0.00012,2]
[327260883,1715944239210,-500.0,0.00012,2]
[327260884,1715944239220,-500.0,0.00012,2]
[327260885,1715944239230,-500.0,0.00012,2]
[327260886,1715944239239,-500.0,0.00012,2]
[327260887,1715944239249,-500.0,0.00012,2]
[327260888,1715944239258,-500.0,0.00012,2]
[327260889,1715944239268,-500.0,0.00012,2]
[327260890,1715944239278,-500.0,0.00012,2]
[327260891,1715944239287,-500.0,0.00012,2]
[327260892,1715944239297,-500.0,0.00012,2]
[327260893,1715944239307,-500.0,0.00012,2]
[327260894,1715944239316,-500.0,0.00012,2]
[327260895,1715944239326,-500.0,0.00012,2]
[327260896,1715944239336,-500.0,0.00012,2]
[327260897,1715944239346,-500.0,0.00012,2]
[327260898,1715944239355,-500.0,0.00012,2]
[327260899,1715944239364,-500.0,0.00012,2]
[327260900,1715944239374,-500.0,0.00012,2]
[327260901,1715944239384,-500.0,0.00012,2]
[327260902,1715944239393,-500.0,0.00012,2]
[327260903,1715944239403,-500.0,0.00012,2]
[327260904,1715944239414,-500.0,0.00012,2]
[327260905,1715944239424,-500.0,0.00012,2]
[327260906,1715944239434,-500.0,0.00012,2]
[327260907,1715944239443,-500.0,0.00012,2]
[327260908,1715944239453,-500.0,0.00012,2]
[327260909,1715944239463,-500.0,0.00012,2]
[327260910,1715944239472,-500.0,0.00012,2]
[327260911,1715944239482,-500.0,0.00012,2]
[327260912,1715944239491,-500.0,0.00012,2]
[327260913,1715944239501,-500.0,0.00012,2]
[327260914,1715944239514,-500.0,0.00012,2]
[327260915,1715944239523,-500.0,0.00012,2]
[327260916,1715944239532,-478.57,0.00012,2]
[327260917,1715944239542,-500.0,0.00012,2]
[327260918,1715944239552,-500.0,0.00012,2]
[327260919,1715944239562,-500.0,0.00012,2]
[327260920,1715944239571,-500.0,0.00012,2]
[327260921,1715944239580,-500.0,0.00012,2]
[327260922,1715944239591,-3738.312,0.00012,2]
[327260923,1715944239601,-500.0,0.00012,2]
[327260924,1715944239610,-500.0,0.00012,2]
[327260925,1715944239619,-500.0,0.00012,2]
[327260926,1715944239629,-500.0,0.00012,2]
[327260927,1715944239638,-500.0,0.00012,2]
[327260928,1715944239648,-500.0,0.00012,2]
[327260929,1715944239658,-500.0,0.00012,2]
[327260930,1715944239667,-500.0,0.00012,2]
[327260931,1715944239675,-500.0,0.00012,2]
[327260932,1715944239684,-528.9,0.00012,2]
[327260933,1715944239694,-1200.0,0.00012,4]
[327260934,1715944239703,-1025.12986454,0.00012011,2]
[327260935,1715944239713,-1800.0,0.000121,4]
[327260937,1715944239723,-1025.12986454,0.00012122,2]
[327260938,1715944239732,-180.28603728,0.00012198,2]
[327260939,1715944239742,-2400.0,0.000122,4]
[327260940,1715944239751,-230.33811832,0.00012228,2]
[327260941,1715944239761,-1025.12986454,0.00012233,2]
[327260942,1715944239771,-1564.36069654,0.00012243,2]
[327260943,1715944239780,-3681.657,0.00012291,2]
[327260944,1715944239790,-3000.0,0.000123,4]
[327260945,1715944239799,-3633.241,0.00012323,2]
[327260946,1715944239810,-3689.326,0.00012328,2]
[327260947,1715944239819,-466.98413572,0.00012328,2]
[327260948,1715944239828,-369.16374287,0.00012328,2]
[327260949,1715944239841,-160.97827659,0.00012328,2]
[327260950,1715944239850,-500.0,0.00012328,2]
[327260951,1715944239859,-513.82017485,0.00012328,2]
[327260953,1715944239869,-500.0,0.00012328,2]
[327260954,1715944239879,-500.0,0.00012328,2]
[327260955,1715944239888,-500.0,0.00012328,2]
[327260956,1715944239898,-511.01633916,0.00012328,2]
[327260957,1715944239909,-500.0,0.00012328,2]
[327260958,1715944239919,-500.0,0.00012328,2]
[327260959,1715944239928,-513.28,0.00012328,2]
[327260960,1715944239938,-507.1006611,0.00012328,2]
[327260961,1715944239948,-500.0,0.00012328,2]
[327260962,1715944239957,-80.85283404,0.00012328,2]
[327260963,1715944239969,-81.31071025,0.00012328,2]
[327260964,1715944239979,-394.64248621,0.00012328,2]
[327260965,1715944239990,-105.35751379,0.00012328,2]
[327260966,1715944239999,-290.4155835,0.00012328,2]
[327260967,1715944240011,-209.5844165,0.00012328,2]
[327260968,1715944240021,-251.14109403,0.00012328,2]
[327260969,1715944240032,-248.85890597,0.00012328,2]
[327260970,1715944240042,-500.0,0.00012328,2]
[327260971,1715944240051,-500.0,0.00012328,2]
[327260972,1715944240060,-500.0,0.00012328,2]
[327260973,1715944240070,-229.16774485,0.00012328,2]
[327260974,1715944240079,-503.66,0.00012328,2]
[327260975,1715944240088,-388.10239267,0.00012328,2]
[327260976,1715944240098,-500.0,0.00012328,2]
[327260977,1715944240107,-500.0,0.00012328,2]
[327260978,1715944240116,-278.1564042,0.00012328,2]
[327260979,1715944240126,-500.0,0.00012328,2]
[327260980,1715944240143,-500.0,0.00012328,2]
[327260981,1715944240156,-482.5,0.00012328,2]
[327260982,1715944240167,-500.0,0.00012328,2]
[327260983,1715944240177,-500.0,0.00012328,2]
[327260984,1715944240187,-507.92465185,0.00012328,2]
[327260985,1715944240196,-433.29,0.00012328,2]
[327260986,1715944240206,-500.0,0.00012328,2]
[327260987,1715944240216,-500.0,0.00012328,2]
[327260988,1715944240226,-500.0,0.00012328,2]
[327260989,1715944240236,-547.97707515,0.00012328,2]
[327260990,1715944240246,-500.0,0.00012328,2]
[327260991,1715944240256,-500.0,0.00012328,2]
[327260992,1715944240266,-500.0,0.00012328,2]
[327260993,1715944240275,-500.0,0.00012328,2]
[327260994,1715944240285,-576.72992272,0.00012328,2]
[327260995,1715944240296,-500.0,0.00012328,2]
[327260996,1715944240306,-610.33,0.00012328,2]
[327260997,1715944240316,-500.0,0.00012328,2]
[327260998,1715944240326,-500.0,0.00012328,2]
[327260999,1715944240336,-500.0,0.00012328,2]
[327261000,1715944240346,-500.0,0.00012328,2]
[327261001,1715944240356,-500.0,0.00012328,2]
[327261002,1715944240365,-517.39227678,0.00012328,2]
[327261003,1715944240376,-293.75,0.00012328,2]
[327261004,1715944240386,-328.76329876,0.00012328,2]
[327261005,1715944240396,-285.87785061,0.00012328,2]
[327261006,1715944240406,-500.0,0.00012328,2]
[327261007,1715944240418,-509.50982843,0.00012328,2]
[327261008,1715944240428,-500.0,0.00012328,2]
[327261009,1715944240438,-435.92,0.00012328,2]
[327261010,1715944240448,-81.27720618,0.00012328,2]
[327261011,1715944240462,-418.72279382,0.00012328,2]
[327261012,1715944240472,-500.0,0.00012328,2]
[327261013,1715944240482,-500.0,0.00012328,2]
[327261014,1715944240491,-500.0,0.00012328,2]
[327261015,1715944240501,-500.0,0.00012328,2]
[327261016,1715944240514,-500.0,0.00012328,2]
[327261017,1715944240523,-500.0,0.00012328,2]
[327261018,1715944240533,-320.03054969,0.00012328,2]
[327261019,1715944240542,-212.17,0.00012328,2]
[327261020,1715944240553,-500.0,0.00012328,2]
[327261022,1715944240563,-500.0,0.00012328,2]
[327261024,1715944240572,-500.0,0.00012328,2]
[327261026,1715944240582,-585.9091084,0.00012328,2]
[327261028,1715944240595,-500.0,0.00012328,2]
[327261030,1715944240606,-500.0,0.00012328,2]
[327261032,1715944240615,-500.0,0.00012328,2]
[327261034,1715944240624,-305.51653828,0.00012328,2]
[327261036,1715944240634,-500.0,0.00012328,2]
[327261038,1715944240644,-500.0,0.00012328,2]
[327261039,1715944240653,-500.0,0.00012328,2]
[327261040,1715944240665,-500.0,0.00012328,2]
[327261041,1715944240674,-557.36,0.00012328,2]
[327261042,1715944240683,-207.74,0.00012328,2]
[327261043,1715944240692,-500.0,0.00012328,2]
[327261044,1715944240702,-500.0,0.00012328,2]
[327261045,1715944240711,-500.0,0.00012328,2]
[327261046,1715944240721,-500.0,0.00012328,2]
[327261047,1715944240731,-500.0,0.00012328,2]
[327261048,1715944240742,-500.0,0.00012328,2]
[327261049,1715944240752,-506.04,0.00012328,2]
[327261050,1715944240762,-500.0,0.00012328,2]
[327261051,1715944240771,-500.0,0.00012328,2]
[327261052,1715944240781,-500.0,0.00012328,2]
[327261053,1715944240791,-500.0,0.00012328,2]
[327261054,1715944240800,-512.93629726,0.00012328,2]
[327261055,1715944240810,-500.0,0.00012328,2]
[327261056,1715944240819,-500.0,0.00012328,2]
[327261057,1715944240829,-500.0,0.00012328,2]
[327261058,1715944240838,-500.0,0.00012328,2]
[327261059,1715944240848,-500.0,0.00012328,2]
[327261060,1715944240857,-514.70576462,0.00012328,2]
[327261061,1715944240867,-515.19794811,0.00012328,2]
[327261062,1715944240877,-509.76106209,0.00012328,2]
[327261063,1715944240887,-160.0,0.00012328,2]
[327261064,1715944240896,-511.91,0.00012328,2]
[327261065,1715944240905,-517.86325109,0.00012328,2]
[327261066,1715944240916,-500.0,0.00012328,2]
[327261067,1715944240926,-500.0,0.00012328,2]
[327261068,1715944240935,-500.0,0.00012328,2]
[327261069,1715944240944,-624.37,0.00012328,2]
[327261070,1715944240953,-592.2,0.00012328,2]
[327261071,1715944240963,-586.74157272,0.00012328,2]
[327261072,1715944240973,-500.0,0.00012328,2]
[327261073,1715944240983,-359.66,0.00012328,2]
[327261074,1715944240992,-500.0,0.00012328,2]
[327261075,1715944241001,-500.0,0.00012328,2]
[327261076,1715944241011,-275.97180141,0.00012328,2]
[327261077,1715944241021,-290.54,0.00012328,2]
[327261078,1715944241030,-500.0,0.00012328,2]
[327261079,1715944241039,-522.89485284,0.00012328,2]
[327261080,1715944241048,-364.74,0.00012328,2]
[327261081,1715944241057,-493.25078621,0.00012328,2]
[327261082,1715944241067,-500.0,0.00012328,2]
[327261083,1715944241077,-954.15,0.00012328,2]
[327261084,1715944241087,-236.19,0.00012328,2]
[327261085,1715944241096,-22.97717504,0.00012328,2]
[327261086,1715944241334,-477.02282496,0.00012328,2]
[327261087,1715944241344,-500.0,0.00012328,2]
[327261088,1715944241354,-500.0,0.00012328,2]
[327261089,1715944241364,-754.12,0.00012328,2]
[327261090,1715944241373,-237.37804278,0.00012328,2]
[327261091,1715944241382,-500.0,0.00012328,2]
[327261092,1715944241391,-236.25,0.00012328,2]
[327261093,1715944241400,-500.0,0.00012328,2]
[327261094,1715944241411,-633.18,0.00012328,2]
[327261095,1715944241420,-500.0,0.00012328,2]
[327261096,1715944241430,-699.95,0.00012328,2]
[327261097,1715944241439,-507.9,0.00012328,2]
[327261098,1715944241448,-500.0,0.00012328,2]
[327261099,1715944241457,-500.0,0.00012328,2]
[327261100,1715944241466,-647.24,0.00012328,2]
[327261101,1715944241475,-500.0,0.00012328,2]
[327261102,1715944241484,-500.0,0.00012328,2]
[327261103,1715944241494,-501.33,0.00012328,2]
[327261104,1715944241503,-500.0,0.00012328,2]
[327261105,1715944241515,-500.0,0.00012328,2]
[327261106,1715944241524,-1039.01,0.00012328,2]
[327261107,1715944241533,-500.0,0.00012328,2]
[327261108,1715944241542,-500.0,0.00012328,2]
[327261109,1715944241552,-500.0,0.00012328,2]
[327261110,1715944241562,-200.07595457,0.00012328,2]
[327261111,1715944241571,-649.62,0.00012328,2]
[327261112,1715944241581,-500.0,0.00012328,2]
[327261113,1715944241593,-500.0,0.00012328,2]
[327261114,1715944241602,-530.65,0.00012328,2]
[327261115,1715944241611,-500.0,0.00012328,2]
[327261116,1715944241621,-500.0,0.00012328,2]
[327261117,1715944241630,-500.0,0.00012328,2]
[327261118,1715944241639,-163.37152003,0.00012328,2]
[327261119,1715944241648,-500.0,0.00012328,2]
[327261120,1715944241658,-500.0,0.00012328,2]
[327261121,1715944241668,-500.0,0.00012328,2]
[327261122,1715944241677,-313.33590894,0.00012328,2]
[327261123,1715944241686,-500.0,0.00012328,2]
[327261124,1715944241695,-500.0,0.00012328,2]
[327261125,1715944241705,-500.0,0.00012328,2]
[327261126,1715944241716,-500.0,0.00012328,2]
[327261127,1715944241725,-316.08,0.00012328,2]
[327261128,1715944241734,-156.90994531,0.00012328,2]
[327261129,1715944241743,-500.0,0.00012328,2]
[327261130,1715944241752,-500.0,0.00012328,2]
[327261131,1715944241761,-500.0,0.00012328,2]
[327261132,1715944241771,-500.0,0.00012328,2]
[327261133,1715944241780,-500.0,0.00012328,2]
[327261134,1715944241791,-500.0,0.00012328,2]
[327261135,1715944241799,-500.0,0.00012328,2]
[327261136,1715944241809,-530.94623099,0.00012328,2]
[327261137,1715944241819,-500.0,0.00012328,2]
[327261138,1715944241828,-500.0,0.00012328,2]
[327261139,1715944241838,-500.0,0.00012328,2]
[327261140,1715944241847,-527.39,0.00012328,2]
[327261141,1715944241856,-500.0,0.00012328,2]
[327261142,1715944241866,-2959.1,0.00012328,2]
[327261143,1715944241875,-500.0,0.00012328,2]
[327261144,1715944241884,-500.0,0.00012328,2]
[327261145,1715944241893,-500.0,0.00012328,2]
[327261146,1715944241903,-500.0,0.00012328,2]
[327261147,1715944241912,-500.0,0.00012328,2]
[327261148,1715944241921,-162.43,0.00012328,2]
[327261149,1715944241931,-379.21096313,0.00012328,2]
[327261150,1715944241940,-844.31,0.00012328,2]
[327261151,1715944241949,-500.0,0.00012328,2]
[327261152,1715944241958,-500.0,0.00012328,2]
[327261153,1715944241967,-500.0,0.00012328,2]
[327261154,1715944241976,-500.0,0.00012328,2]
[327261155,1715944241986,-586.54,0.00012328,2]
[327261156,1715944241995,-279.72567193,0.00012328,2]
[327261157,1715944242004,-500.0,0.00012328,2]
[327261158,1715944242014,-500.0,0.00012328,2]
[327261159,1715944242023,-500.0,0.00012328,2]
[327261160,1715944242033,-500.0,0.00012328,2]
[327261161,1715944242042,-632.50271526,0.00012328,2]
[327261162,1715944242052,-500.0,0.00012328,2]
[327261163,1715944242061,-500.0,0.00012328,2]
[327261164,1715944242071,-1784.09,0.00012328,2]
[327261165,1715944242080,-540.95880382,0.00012328,2]
[327261166,1715944242089,-500.0,0.00012328,2]
[327261167,1715944242099,-500.0,0.00012328,2]
[327261168,1715944242109,-500.0,0.00012328,2]
[327261169,1715944242119,-500.0,0.00012328,2]
[327261170,1715944242128,-500.0,0.00012328,2]
[327261171,1715944242137,-500.0,0.00012328,2]
[327261172,1715944242146,-500.0,0.00012328,2]
[327261173,1715944242155,-500.0,0.00012328,2]
[327261174,1715944242165,-500.0,0.00012328,2]
[327261175,1715944242174,-500.0,0.00012328,2]
[327261176,1715944242183,-313.50211148,0.00012328,2]
[327261177,1715944242192,-500.0,0.00012328,2]
[327261178,1715944242202,-516.27,0.00012328,2]
[327261179,1715944242212,-500.0,0.00012328,2]
[327261180,1715944242221,-500.0,0.00012328,2]
[327261181,1715944242230,-500.0,0.00012328,2]
[327261182,1715944242240,-500.0,0.00012328,2]
[327261183,1715944242249,-500.0,0.00012328,2]
[327261184,1715944242258,-500.0,0.00012328,2]
[327261185,1715944242267,-500.0,0.00012328,2]
[327261186,1715944242277,-500.0,0.00012328,2]
[327261187,1715944242286,-500.0,0.00012328,2]
[327261188,1715944242295,-527.41,0.00012328,2]
[327261189,1715944242304,-666.88,0.00012328,2]
[327261190,1715944242313,-500.0,0.00012328,2]
[327261191,1715944242323,-500.0,0.00012328,2]
[327261192,1715944242332,-500.0,0.00012328,2]
[327261193,1715944242341,-500.0,0.00012328,2]
[327261194,1715944242351,-500.0,0.00012328,2]
[327261195,1715944242360,-484.00681849,0.00012328,2]
[327261196,1715944242369,-500.0,0.00012328,2]
[327261197,1715944242378,-500.0,0.00012328,2]
[327261198,1715944242388,-1025.12986454,0.00012344,2]
[327261199,1715944242397,-158.67,0.00012381,2]
[327261200,1715944242406,-230.3381183,0.00012396,2]
[327261201,1715944242418,-600.0,0.000124,4]
[327261202,1715944242427,-500.0,0.00012409,2]
[327261203,1715944242437,-954.15,0.00012409,2]
[327261204,1715944242446,-500.0,0.00012409,2]
[327261205,1715944242455,-754.12,0.00012409,2]
[327261206,1715944242465,-500.0,0.00012409,2]
[327261207,1715944242474,-633.18,0.00012409,2]
[327261208,1715944242484,-699.95,0.00012409,2]
[327261209,1715944242493,-500.0,0.00012409,2]
[327261210,1715944242503,-169.96,0.00012409,2]
[327261211,1715944242517,-500.0,0.00012409,2]
[327261212,1715944242526,-1039.01,0.00012409,2]
[327261213,1715944242536,-500.0,0.00012409,2]
[327261214,1715944242546,-500.0,0.00012409,2]
[327261215,1715944242555,-500.0,0.00012409,2]
[327261216,1715944242564,-500.0,0.00012409,2]
[327261217,1715944242574,-500.0,0.00012409,2]
[327261218,1715944242584,-500.0,0.00012409,2]
[327261219,1715944242595,-500.0,0.00012409,2]
[327261220,1715944242605,-500.0,0.00012409,2]
[327261221,1715944242614,-500.0,0.00012409,2]